[Event "1.Frauenbundesliga 2018-19"]
[Site "Germany"]
[Date "2019.01.12"]
[Round "5.10"]
[White "Mader, Manuela"]
[Black "Osmanodja, Filiz"]
[Result "0-1"]
[ECO "C68"]
[WhiteElo "2166"]
[BlackElo "2318"]
[Annotator "NA"]
[PlyCount "76"]
[EventDate "2018.10.27"]
[EventType "team-tourn"]
[EventCountry "GER"]
[SourceTitle "playchess.com"]
[Source "ChessBase"]
[SourceQuality "1"]
[TimeControl "40/5400+30:1800+30"]

1. e4 {[%emt 0:00:30]} e5 {[%emt 0:00:30]} 2. Nf3 {[%emt 0:00:00]} Nc6 {[%emt 0:00:00]} 3. Bb5 {[%emt 0:00:00]} a6 {[%emt 0:00:00]} 4. Bxc6 {[%emt 0:00:00]} dxc6 {[%emt 0:00:00]} 5. O-O {[%emt 0:00:00]} Bg4 {[%emt 0:01:00]} 6. h3 {[%emt 0:00:30]} h5 {[%emt 0:00:30]} 7. d3 {[%emt 0:00:00]} Qf6 {[%emt 0:03:30]} 8. Nbd2 {[%emt 0:00:00]} g5 {[%emt 0:00:30]} 9. Nc4 {[%emt 0:03:30]} Bxf3 {[%emt 0:01:30]} 10. Qxf3 {[%emt 0:00:00]} Qxf3 {[%emt 0:00:30]} 11. gxf3 {[%emt 0:00:00]} f6 {[%emt 0:00:30]} 12. c3 {[%emt 0:03:30]} O-O-O {[%emt 0:07:30]} 13. Rd1 {[%emt 0:00:30]} Ne7 {[%emt 0:09:30]} 14. Be3 {[%emt 0:02:30]} Ng6 {[%emt 0:01:30]} 15. Kf1 {[%emt 0:01:30]} Be7 {[%emt 0:09:30]} 16. d4 {[%emt 0:15:30]} Rdf8 {[%emt 0:10:30]} 17. b4 {[%emt 0:08:30]} exd4 {[%emt 0:04:30]} 18. cxd4 {[%emt 0:00:30]} f5 {[%emt 0:08:30]} 19. Ke2 {[%emt 0:20:30]} f4 {[%emt 0:11:30]} 20. Bd2 {[%emt 0:00:30]} g4 {[%emt 0:00:30]} 21. Rg1 {[%emt 0:11:30]} gxf3+ {[%emt 0:05:30]} 22. Kxf3 {[%emt 0:00:00]} Rhg8 {[%emt 0:05:13]} 23. Ne5 {[%emt 0:08:00]} Nh4+ {[%emt 0:05:29]} 24. Ke2 {[%emt 0:00:00]} f3+ {[%emt 0:03:46]} 25. Ke3 {[%emt 0:04:00]} Ng2+ {[%emt 0:01:48]} 26. Kd3 {[%emt 0:00:30]} Bh4 {[%emt 0:01:15]} 27. Be3 {[%emt 0:02:02]} Rf6 {[%emt 0:04:20]} 28. a4 {[%emt 0:01:54]} a5 {[%emt 0:00:56]} 29. bxa5 {[%emt 0:03:04]} Bg5 {[%emt 0:01:13]} 30. Bxg5 {[%emt 0:07:32]} Rxg5 {[%emt 0:00:01]} 31. Kd2 {[%emt 0:01:49]} Rg8 {[%emt 0:03:16]} 32. Ra3 {[%emt 0:00:37]} Rd8 {[%emt 0:00:33]} 33. Nxf3 {[%emt 0:06:07]} Nf4 {[%emt 0:00:03]} 34. e5 {[%emt 0:01:21]} Rf5 {[%emt 0:00:09]} 35. h4 {[%emt 0:00:32]} Nh3 {[%emt 0:01:09]} 36. Rg2 {[%emt 0:00:27]} c5 {[%emt 0:00:15]} 37. Ke1 {[%emt 0:00:31]} cxd4 {[%emt 0:00:31]} 38. Rg3 {[%emt 0:00:31]} Nf4 {[%emt 0:00:30]} 0-1

[Event "1.Frauenbundesliga 2018-19"]
[Site "Germany"]
[Date "2019.01.12"]
[Round "5.11"]
[White "Fuchs, Judith"]
[Black "Scheynin, Julia"]
[Result "1-0"]
[ECO "D02"]
[WhiteElo "2249"]
[BlackElo "1998"]
[Annotator "NA"]
[PlyCount "71"]
[EventDate "2018.10.27"]
[EventType "team-tourn"]
[EventCountry "GER"]
[SourceTitle "playchess.com"]
[Source "ChessBase"]
[SourceQuality "1"]
[TimeControl "40/5400+30:1800+30"]

1. d4 {[%emt 0:00:30]} d5 {[%emt 0:00:30]} 2. Bf4 {[%emt 0:00:00]} e6 {[%emt 0:00:30]} 3. e3 {[%emt 0:00:00]} Nf6 {[%emt 0:00:30]} 4. Nf3 {[%emt 0:00:30]} c5 {[%emt 0:03:30]} 5. c3 {[%emt 0:00:30]} Nc6 {[%emt 0:04:30]} 6. Nbd2 {[%emt 0:00:30]} a6 {[%emt 0:01:30]} 7. Bd3 {[%emt 0:01:30]} Bd6 {[%emt 0:03:30]} 8. Bg3 {[%emt 0:00:00]} Bxg3 {[%emt 0:03:30]} 9. hxg3 {[%emt 0:00:00]} c4 {[%emt 0:02:30]} 10. Bc2 {[%emt 0:01:30]} h6 {[%emt 0:10:30]} 11. Qe2 {[%emt 0:02:30]} b5 {[%emt 0:05:30]} 12. e4 {[%emt 0:11:30]} Ne7 {[%emt 0:10:30]} 13. e5 {[%emt 0:03:30]} Nd7 {[%emt 0:02:30]} 14. g4 {[%emt 0:01:30]} b4 {[%emt 0:13:30]} 15. g5 {[%emt 0:04:30]} bxc3 {[%emt 0:00:30]} 16. bxc3 {[%emt 0:00:30]} Rb8 {[%emt 0:01:30]} 17. gxh6 {[%emt 0:14:30]} Rb2 {[%emt 0:09:30]} 18. O-O-O {[%emt 0:06:30]} Rxa2 {[%emt 0:01:30]} 19. hxg7 {[%emt 0:02:30]} Rg8 {[%emt 0:00:30]} 20. Nb1 {[%emt 0:11:30]} Qb6 {[%emt 0:02:30]} 21. Kd2 {[%emt 0:01:30]} Qb2 {[%emt 0:01:30]} 22. Rc1 {[%emt 0:00:30]} Rxg7 {[%emt 0:00:39]} 23. Rh8+ {[%emt 0:01:30]} Nf8 {[%emt 0:01:45]} 24. g3 {[%emt 0:05:30]} Neg6 {[%emt 0:00:59]} 25. Rh2 {[%emt 0:02:30]} Bd7 {[%emt 0:00:16]} 26. Kd1 {[%emt 0:00:00]} Kd8 {[%emt 0:01:28]} 27. Qd2 {[%emt 0:04:00]} Ba4 {[%emt 0:04:11]} 28. Bxa4 {[%emt 0:04:49]} Qxd2+ {[%emt 0:00:23]} 29. Nbxd2 {[%emt 0:00:32]} Rxa4 {[%emt 0:00:10]} 30. Rb1 {[%emt 0:03:46]} Ra5 {[%emt 0:00:22]} 31. Ng5 {[%emt 0:04:26]} Nxe5 {[%emt 0:04:18]} 32. dxe5 {[%emt 0:00:41]} Rxg5 {[%emt 0:00:04]} 33. Rh8 {[%emt 0:00:46]} Ke7 {[%emt 0:00:37]} 34. Nf3 {[%emt 0:03:23]} Rg7 {[%emt 0:01:29]} 35. Rb8 {[%emt 0:02:10]} Ng6 {[%emt 0:00:32]} 36. Rb7# {[%emt 0:00:54]} 1-0

[Event "1.Frauenbundesliga 2018-19"]
[Site "Germany"]
[Date "2019.01.12"]
[Round "5.12"]
[White "Basovskiy, Jana"]
[Black "Baciu, Diana"]
[Result "0-1"]
[ECO "A08"]
[WhiteElo "1768"]
[BlackElo "2281"]
[Annotator "NA"]
[PlyCount "120"]
[EventDate "2018.10.27"]
[EventType "team-tourn"]
[EventCountry "GER"]
[SourceTitle "playchess.com"]
[Source "ChessBase"]
[SourceQuality "1"]
[TimeControl "40/5400+30:1800+30"]

1. e4 {[%emt 0:00:30]} e6 {[%emt 0:00:30]} 2. d3 {[%emt 0:00:00]} d5 {[%emt 0:04:30]} 3. Nd2 {[%emt 0:00:00]} c5 {[%emt 0:00:30]} 4. g3 {[%emt 0:01:30]} Nc6 {[%emt 0:00:30]} 5. Bg2 {[%emt 0:01:30]} g6 {[%emt 0:01:30]} 6. c3 {[%emt 0:03:30]} Bg7 {[%emt 0:00:30]} 7. Ngf3 {[%emt 0:00:30]} Nge7 {[%emt 0:00:30]} 8. O-O {[%emt 0:01:30]} O-O {[%emt 0:00:30]} 9. Qc2 {[%emt 0:07:30]} b6 {[%emt 0:01:30]} 10. Rd1 {[%emt 0:07:30]} Qc7 {[%emt 0:00:00]} 11. Nf1 {[%emt 0:02:30]} Bb7 {[%emt 0:14:00]} 12. h4 {[%emt 0:04:30]} Rad8 {[%emt 0:09:30]} 13. Bf4 {[%emt 0:04:30]} e5 {[%emt 0:03:30]} 14. Be3 {[%emt 0:02:30]} h6 {[%emt 0:01:30]} 15. N1h2 {[%emt 0:05:30]} f5 {[%emt 0:06:30]} 16. Ne1 {[%emt 0:12:30]} Kh8 {[%emt 0:10:30]} 17. Bd2 {[%emt 0:21:30]} Qd6 {[%emt 0:05:30]} 18. Qc1 {[%emt 0:04:37]} Kh7 {[%emt 0:00:30]} 19. Qc2 {[%emt 0:01:28]} Qf6 {[%emt 0:01:30]} 20. exf5 {[%emt 0:02:15]} Qxf5 {[%emt 0:02:30]} 21. Be3 {[%emt 0:00:20]} Qf7 {[%emt 0:06:30]} 22. Qe2 {[%emt 0:02:14]} Nf5 {[%emt 0:01:30]} 23. Ng4 {[%emt 0:01:36]} Rde8 {[%emt 0:01:30]} 24. Bd2 {[%emt 0:01:50]} Ba6 {[%emt 0:01:30]} 25. Qf3 {[%emt 0:02:31]} e4 {[%emt 0:02:30]} 26. dxe4 {[%emt 0:00:17]} dxe4 {[%emt 0:01:30]} 27. Qf4 {[%emt 0:01:09]} Qe6 {[%emt 0:05:12]} 28. Ne3 {[%emt 0:03:28]} Nd6 {[%emt 0:03:21]} 29. Qg4 {[%emt 0:00:33]} Qxg4 {[%emt 0:06:40]} 30. Nxg4 {[%emt 0:00:01]} Be2 {[%emt 0:00:10]} 31. Bf4 {[%emt 0:04:25]} Nc4 {[%emt 0:00:04]} 32. Ne3 {[%emt 0:01:02]} Nxe3 {[%emt 0:04:34]} 33. Bxe3 {[%emt 0:00:43]} Bxd1 {[%emt 0:00:03]} 34. Rxd1 {[%emt 0:00:00]} Rf7 {[%emt 0:01:03]} 35. Nc2 {[%emt 0:00:36]} Na5 {[%emt 0:02:45]} 36. Na3 {[%emt 0:00:32]} Nb7 {[%emt 0:01:45]} 37. Kf1 {[%emt 0:00:49]} Rfe7 {[%emt 0:00:40]} 38. Nc4 {[%emt 0:00:30]} b5 {[%emt 0:00:46]} 39. Nd2 {[%emt 0:00:23]} a6 {[%emt 0:00:36]} 40. Ke2 {[%emt 0:00:35]} Kg8 {[%emt 0:00:00]} 41. Nb3 {[%emt 0:01:06]} c4 {[%emt 0:03:51]} 42. Nd2 {[%emt 0:04:30]} Re6 {[%emt 0:03:30]} 43. Bh3 {[%emt 0:02:30]} Rd6 {[%emt 0:00:30]} 44. Bg2 {[%emt 0:00:00]} Rde6 {[%emt 0:01:30]} 45. Bh3 {[%emt 0:00:00]} Re5 {[%emt 0:01:30]} 46. Bg2 {[%emt 0:04:30]} g5 {[%emt 0:02:30]} 47. hxg5 {[%emt 0:02:44]} hxg5 {[%emt 0:00:30]} 48. Bd4 {[%emt 0:00:50]} R5e6 {[%emt 0:01:30]} 49. Bh3 {[%emt 0:03:25]} Rh6 {[%emt 0:02:28]} 50. Bd7 {[%emt 0:04:40]} Re7 {[%emt 0:03:33]} 51. Bxg7 {[%emt 0:02:53]} Kxg7 {[%emt 0:00:13]} 52. Bc8 {[%emt 0:00:16]} Nd6 {[%emt 0:06:12]} 53. Bg4 {[%emt 0:01:12]} e3 {[%emt 0:00:51]} 54. fxe3 {[%emt 0:01:52]} Rh2+ {[%emt 0:00:03]} 55. Kf1 {[%emt 0:02:10]} Rxe3 {[%emt 0:02:00]} 56. Kg1 {[%emt 0:01:46]} Rh6 {[%emt 0:00:39]} 57. Kf2 {[%emt 0:00:20]} Rd3 {[%emt 0:00:28]} 58. Be2 {[%emt 0:00:50]} Rh2+ {[%emt 0:00:56]} 59. Ke1 {[%emt 0:00:14]} Re3 {[%emt 0:00:24]} 60. Nf3 {[%emt 0:02:47]} Rexe2+ {[%emt 0:00:28]} 0-1

[Event "1.Frauenbundesliga 2018-19"]
[Site "Germany"]
[Date "2019.01.13"]
[Round "6"]
[White "Melamed, Tatjana"]
[Black "Majdan, Joanna"]
[Result "1/2-1/2"]
[ECO "C41"]
[WhiteElo "2368"]
[BlackElo "2386"]
[Annotator "NA"]
[PlyCount "54"]
[EventDate "2018.10.27"]
[EventType "team-tourn"]
[EventCountry "GER"]
[SourceTitle "playchess.com"]
[Source "ChessBase"]
[SourceQuality "1"]
[TimeControl "40/5400+30:1800+30"]

1. e4 {[%emt 0:00:00]} d6 {[%emt 0:00:00]} 2. d4 {[%emt 0:00:11]} Nf6 {[%emt 0:00:00]} 3. Nc3 {[%emt 0:00:23]} e5 {[%emt 0:00:08]} 4. Nf3 {[%emt 0:01:38]} Nbd7 {[%emt 0:00:05]} 5. Bc4 {[%emt 0:02:51]} Be7 {[%emt 0:00:07]} 6. O-O {[%emt 0:01:18]} O-O {[%emt 0:00:05]} 7. Re1 {[%emt 0:00:32]} c6 {[%emt 0:00:08]} 8. a4 {[%emt 0:00:11]} a5 {[%emt 0:00:04]} 9. h3 {[%emt 0:08:32]} Nb6 {[%emt 0:00:29]} 10. Bf1 {[%emt 0:03:31]} exd4 {[%emt 0:11:22]} 11. Nxd4 {[%emt 0:03:04]} d5 {[%emt 0:00:14]} 12. e5 {[%emt 0:05:42]} Ne8 {[%emt 0:00:22]} 13. Bd3 {[%emt 0:05:39]} g6 {[%emt 0:00:38]} 14. Bh6 {[%emt 0:08:06]} Ng7 {[%emt 0:00:17]} 15. Qf3 {[%emt 0:05:39]} f6 {[%emt 0:07:27]} 16. e6 {[%emt 0:09:15]} f5 {[%emt 0:06:01]} 17. Rad1 {[%emt 0:03:58]} Bc5 {[%emt 0:15:09]} 18. Bxg7 {[%emt 0:14:47]} Kxg7 {[%emt 0:00:10]} 19. Nce2 {[%emt 0:12:13]} Qf6 {[%emt 0:01:27]} 20. Qf4 {[%emt 0:04:08]} Re8 {[%emt 0:05:49]} 21. Nb3 {[%emt 0:02:48]} Be7 {[%emt 0:00:59]} 22. Ng3 {[%emt 0:01:02]} Kh8 {[%emt 0:13:14]} 23. c3 {[%emt 0:00:31]} Qh4 {[%emt 0:01:54]} 24. Qe5+ {[%emt 0:01:21]} Qf6 {[%emt 0:01:16]} 25. Qf4 {[%emt 0:00:10]} Qh4 {[%emt 0:00:04]} 26. Qe5+ {[%emt 0:00:03]} Qf6 {[%emt 0:00:05]} 27. Qf4 {[%emt 0:00:07]} Kg8 1/2-1/2

[Event "1.Frauenbundesliga 2018-19"]
[Site "Germany"]
[Date "2019.01.13"]
[Round "6"]
[White "Lubbe, Melanie"]
[Black "Obolentseva, Alexandra"]
[Result "1/2-1/2"]
[ECO "B53"]
[WhiteElo "2342"]
[BlackElo "2347"]
[Annotator "NA"]
[PlyCount "167"]
[EventDate "2018.10.27"]
[EventType "team-tourn"]
[EventCountry "GER"]
[SourceTitle "playchess.com"]
[Source "ChessBase"]
[SourceQuality "1"]
[TimeControl "40/5400+30:1800+30"]

1. e4 {[%emt 0:00:00]} c5 {[%emt 0:00:00]} 2. Nf3 {[%emt 0:00:00]} d6 {[%emt 0:00:00]} 3. d4 {[%emt 0:00:00]} cxd4 {[%emt 0:00:00]} 4. Qxd4 {[%emt 0:00:00]} Nc6 {[%emt 0:00:00]} 5. Bb5 {[%emt 0:00:00]} Bd7 {[%emt 0:00:01] LiveBook: 2354 Games} 6. Qd3 {[%emt 0:00:29]} g6 {[%emt 0:04:05]} 7. c4 {[%emt 0:00:34]} Bg7 {[%emt 0:00:08]} 8. Nc3 {[%emt 0:02:13]} Nf6 {[%emt 0:00:39]} 9. O-O {[%emt 0:00:43]} O-O {[%emt 0:00:11]} 10. h3 {[%emt 0:00:08]} Rc8 {[%emt 0:00:19]} 11. Be3 {[%emt 0:00:41]} a6 {[%emt 0:01:23]} 12. Bxc6 {[%emt 0:00:04]} Bxc6 {[%emt 0:00:06]} 13. Nd4 {[%emt 0:01:15]} Nd7 {[%emt 0:00:21]} 14. Rac1 {[%emt 0:00:55]} Nc5 {[%emt 0:07:45]} 15. Qc2 {[%emt 0:00:19]} Ne6 {[%emt 0:04:15]} 16. Nxe6 {[%emt 0:00:24]} fxe6 {[%emt 0:00:06]} 17. Ne2 {[%emt 0:01:05]} Qa5 {[%emt 0:03:51]} 18. b3 {[%emt 0:01:19]} Qe5 {[%emt 0:07:45]} 19. f3 {[%emt 0:01:41]} Qb2 {[%emt 0:00:43]} 20. Rfd1 {[%emt 0:09:19]} Kf7 $11 {[%emt 0:05:51]} 21. a4 {[%emt 0:08:59]} b5 {[%emt 0:08:13]} 22. Qxb2 {[%emt 0:21:25]} Bxb2 {[%emt 0:00:07]} 23. Rc2 {[%emt 0:00:04]} Ba3 {[%emt 0:04:54]} 24. Ra1 {[%emt 0:08:00]} Bb4 {[%emt 0:00:17]} 25. cxb5 {[%emt 0:06:37]} axb5 {[%emt 0:02:26]} 26. a5 {[%emt 0:04:51]} Ba8 {[%emt 0:01:48]} 27. Rxc8 {[%emt 0:04:48]} Rxc8 {[%emt 0:00:06]} 28. a6 {[%emt 0:09:01]} e5 {[%emt 0:02:42]} 29. Rc1 {[%emt 0:03:13]} Bc5 {[%emt 0:05:32]} 30. Bxc5 {[%emt 0:02:23]} dxc5 {[%emt 0:00:06]} 31. b4 {[%emt 0:05:27]} Ke6 {[%emt 0:03:07]} 32. bxc5 {[%emt 0:01:50]} Rc6 {[%emt 0:00:05]} 33. a7 {[%emt 0:02:29]} Ra6 {[%emt 0:00:08]} 34. Nc3 {[%emt 0:01:35]} Bc6 {[%emt 0:00:07]} 35. Nd5 {[%emt 0:02:11]} Rxa7 {[%emt 0:00:33]} 36. Nb4 {[%emt 0:00:03]} Kd7 {[%emt 0:01:15]} 37. Kf2 {[%emt 0:00:33]} Ra4 {[%emt 0:00:24]} 38. Rb1 {[%emt 0:00:41]} Ra3 {[%emt 0:00:14]} 39. Ke2 {[%emt 0:01:55]} Rc3 {[%emt 0:00:20]} 40. Kd2 {[%emt 0:00:54]} Rc4 {[%emt 0:00:31]} 41. Nd3 {[%emt 0:04:21]} Kc7 {[%emt 0:02:59]} 42. Rb4 {[%emt 0:04:34]} Rd4 {[%emt 0:02:16]} 43. Kc3 {[%emt 0:02:29]} Rd8 {[%emt 0:00:07]} 44. Nxe5 {[%emt 0:01:02]} Rd1 {[%emt 0:01:06]} 45. Nd3 {[%emt 0:00:54]} g5 {[%emt 0:00:06]} 46. Rb2 {[%emt 0:01:43]} h5 {[%emt 0:00:21]} 47. Rd2 {[%emt 0:02:41]} Rg1 {[%emt 0:01:24]} 48. Ne5 {[%emt 0:01:00]} Rc1+ {[%emt 0:00:18]} 49. Kd4 {[%emt 0:01:06]} Bb7 {[%emt 0:00:37]} 50. Rb2 {[%emt 0:02:16]} Rd1+ {[%emt 0:00:16]} 51. Ke3 {[%emt 0:00:57]} Bc6 {[%emt 0:00:48]} 52. Ra2 {[%emt 0:00:57]} Kb7 {[%emt 0:00:15]} 53. Nd3 {[%emt 0:02:45]} Rb1 {[%emt 0:00:21]} 54. Rb2 {[%emt 0:01:59]} Ra1 {[%emt 0:00:08]} 55. Nb4 {[%emt 0:00:25]} Rc1 {[%emt 0:01:06]} 56. Rc2 {[%emt 0:01:32]} Rd1 {[%emt 0:00:23]} 57. Nd3 {[%emt 0:00:42]} Rb1 {[%emt 0:00:21]} 58. Ne5 {[%emt 0:00:16]} b4 {[%emt 0:02:19]} 59. Nc4 {[%emt 0:02:46]} Bb5 {[%emt 0:00:07]} 60. Kd4 {[%emt 0:01:21]} Bxc4 {[%emt 0:05:51]} 61. Kxc4 {[%emt 0:00:33]} Kc6 {[%emt 0:00:11]} 62. Rd2 {[%emt 0:01:10]} g4 {[%emt 0:02:40]} 63. hxg4 {[%emt 0:00:34]} hxg4 {[%emt 0:00:05]} 64. fxg4 {[%emt 0:00:25]} Rc1+ {[%emt 0:00:26]} 65. Kxb4 {[%emt 0:00:14]} Rxc5 {[%emt 0:00:04]} 66. Kb3 {[%emt 0:01:23]} Rg5 {[%emt 0:00:44]} 67. Kc4 {[%emt 0:00:24]} Rxg4 {[%emt 0:00:15]} 68. Kd4 {[%emt 0:00:06]} Kd6 {[%emt 0:00:07]} 69. Ke3+ {[%emt 0:00:30]} Ke6 {[%emt 0:00:16]} 70. Kf3 {[%emt 0:01:11]} Rg8 {[%emt 0:00:06]} 71. Rd5 {[%emt 0:01:41]} Rf8+ {[%emt 0:00:22]} 72. Kg4 {[%emt 0:00:16]} Rf1 {[%emt 0:01:06]} 73. Ra5 {[%emt 0:02:14]} Re1 {[%emt 0:00:21]} 74. Kf4 {[%emt 0:00:23]} Rf1+ {[%emt 0:00:48]} 75. Kg5 {[%emt 0:00:31]} Re1 {[%emt 0:00:08]} 76. Ra4 {[%emt 0:00:42]} Ke5 {[%emt 0:00:10]} 77. g4 {[%emt 0:00:36]} Rg1 {[%emt 0:00:37]} 78. Kh5 {[%emt 0:00:53]} Kf6 {[%emt 0:00:07]} 79. e5+ {[%emt 0:00:48]} Kxe5 {[%emt 0:00:07]} 80. Kg6 {[%emt 0:00:01]} Kd5 {[%emt 0:01:27]} 81. g5 {[%emt 0:00:13]} e5 {[%emt 0:00:07]} 82. Kf6 {[%emt 0:00:56]} Rf1+ {[%emt 0:00:11]} 83. Kg7 {[%emt 0:00:14]} e4 {[%emt 0:00:08]} 84. Ra8 {[%emt 0:01:06]} 1/2-1/2

[Event "1.Frauenbundesliga 2018-19"]
[Site "Germany"]
[Date "2019.01.13"]
[Round "6"]
[White "Bluhm, Sonja Maria"]
[Black "Exler, Veronika"]
[Result "1/2-1/2"]
[ECO "B13"]
[WhiteElo "2235"]
[BlackElo "2277"]
[Annotator "NA"]
[PlyCount "57"]
[EventDate "2018.10.27"]
[EventType "team-tourn"]
[EventCountry "GER"]
[SourceTitle "playchess.com"]
[Source "ChessBase"]
[SourceQuality "1"]
[TimeControl "40/5400+30:1800+30"]

1. e4 {[%emt 0:00:00]} c6 {[%emt 0:00:00]} 2. d4 {[%emt 0:00:41]} d5 {[%emt 0:00:00]} 3. exd5 {[%emt 0:00:18]} cxd5 {[%emt 0:00:00]} 4. Bd3 {[%emt 0:00:04]} Nc6 {[%emt 0:00:00]} 5. c3 {[%emt 0:00:16]} Qc7 {[%emt 0:00:00]} 6. Ne2 {[%emt 0:01:37]} Bg4 {[%emt 0:03:08]} 7. f3 {[%emt 0:00:42]} Bd7 {[%emt 0:00:30]} 8. O-O {[%emt 0:04:31]} e6 {[%emt 0:00:24]} 9. Bf4 {[%emt 0:00:52]} Bd6 {[%emt 0:01:15]} 10. Bxd6 {[%emt 0:01:02]} Qxd6 {[%emt 0:00:04]} 11. f4 {[%emt 0:01:06]} Nf6 {[%emt 0:06:39]} 12. Nd2 {[%emt 0:00:32]} Na5 {[%emt 0:13:51]} 13. Ng3 {[%emt 0:04:26]} Qb6 $11 {[%emt 0:15:47]} 14. b4 {[%emt 0:07:16]} Nc6 {[%emt 0:00:33]} 15. Nf3 {[%emt 0:07:25]} O-O {[%emt 0:10:15]} 16. Ne5 {[%emt 0:03:12]} g6 {[%emt 0:13:00]} 17. a4 {[%emt 0:17:47]} Rac8 {[%emt 0:03:19]} 18. Qe1 {[%emt 0:02:11]} Qc7 {[%emt 0:08:37]} 19. Rf3 {[%emt 0:04:48]} Ne7 {[%emt 0:02:15]} 20. Ne2 {[%emt 0:01:03]} Kg7 {[%emt 0:11:40]} 21. Rh3 {[%emt 0:12:42]} h5 {[%emt 0:00:50]} 22. Qh4 {[%emt 0:08:53]} Rh8 {[%emt 0:00:38]} 23. Qg5 {[%emt 0:03:01]} Nf5 {[%emt 0:06:54]} 24. Bxf5 {[%emt 0:07:38]} exf5 {[%emt 0:00:01]} 25. Rg3 {[%emt 0:01:18]} Ng4 {[%emt 0:02:09]} 26. Qe7 {[%emt 0:04:47]} Be6 {[%emt 0:00:19]} 27. Qxc7 {[%emt 0:02:37]} Rxc7 {[%emt 0:00:00]} 28. Rd3 {[%emt 0:01:08]} Nf6 {[%emt 0:00:32]} 29. Ra3 1/2-1/2

[Event "1.Frauenbundesliga 2018-19"]
[Site "Germany"]
[Date "2019.01.13"]
[Round "6"]
[White "Schoene, Maria"]
[Black "Movsesian, Julia"]
[Result "1/2-1/2"]
[ECO "C96"]
[WhiteElo "2171"]
[BlackElo "2305"]
[Annotator "NA"]
[PlyCount "54"]
[EventDate "2018.10.27"]
[EventType "team-tourn"]
[EventCountry "GER"]
[SourceTitle "playchess.com"]
[Source "ChessBase"]
[SourceQuality "1"]
[TimeControl "40/5400+30:1800+30"]

1. e4 {[%emt 0:00:00]} e5 {[%emt 0:00:00]} 2. Nf3 {[%emt 0:00:00]} Nc6 {[%emt 0:00:00]} 3. Bb5 {[%emt 0:00:00]} a6 {[%emt 0:00:00]} 4. Ba4 {[%emt 0:00:00]} Nf6 {[%emt 0:00:00] LiveBook: 56051 Games} 5. O-O {[%emt 0:00:45]} Be7 {[%emt 0:00:16]} 6. Re1 {[%emt 0:01:27]} b5 {[%emt 0:00:16]} 7. Bb3 {[%emt 0:00:06]} d6 {[%emt 0:00:21]} 8. c3 {[%emt 0:00:23]} O-O {[%emt 0:01:42]} 9. h3 {[%emt 0:00:37]} Na5 {[%emt 0:02:01]} 10. Bc2 {[%emt 0:00:17]} c5 {[%emt 0:01:59]} 11. d4 {[%emt 0:00:59]} Nc6 {[%emt 0:02:52]} 12. Be3 {[%emt 0:12:07]} Re8 {[%emt 0:08:48]} 13. Nbd2 {[%emt 0:06:35]} Bf8 {[%emt 0:02:15]} 14. d5 {[%emt 0:09:32]} Ne7 {[%emt 0:00:43]} 15. Nh4 $14 {[%emt 0:00:15]} Kh8 {[%emt 0:09:23]} 16. Qf3 {[%emt 0:09:01]} Neg8 {[%emt 0:02:00]} 17. Nf5 {[%emt 0:08:15]} g6 {[%emt 0:01:49]} 18. Ng3 {[%emt 0:00:05]} Bg7 {[%emt 0:00:46]} 19. Ndf1 {[%emt 0:00:38]} Rb8 {[%emt 0:01:33]} 20. Nh2 {[%emt 0:06:35]} a5 {[%emt 0:01:54]} 21. h4 {[%emt 0:11:08]} h5 {[%emt 0:00:59]} 22. Bg5 {[%emt 0:00:23]} Bh6 {[%emt 0:03:13]} 23. Qe3 {[%emt 0:03:24]} Bxg5 {[%emt 0:00:46]} 24. Qxg5 {[%emt 0:00:07]} Qd7 {[%emt 0:01:52]} 25. Ne2 {[%emt 0:03:34]} Kg7 {[%emt 0:02:35]} 26. Rf1 {[%emt 0:10:21]} Ng4 {[%emt 0:05:16]} 27. Nxg4 {[%emt 0:00:24]} Qxg4 1/2-1/2

[Event "1.Frauenbundesliga 2018-19"]
[Site "Germany"]
[Date "2019.01.13"]
[Round "6"]
[White "Korenova, Martina"]
[Black "Belenkaya, Dina"]
[Result "0-1"]
[ECO "D26"]
[WhiteElo "2163"]
[BlackElo "2357"]
[Annotator "NA"]
[PlyCount "50"]
[EventDate "2018.10.27"]
[EventType "team-tourn"]
[EventCountry "GER"]
[SourceTitle "playchess.com"]
[Source "ChessBase"]
[SourceQuality "1"]
[TimeControl "40/5400+30:1800+30"]

1. d4 {[%emt 0:00:00]} d5 {[%emt 0:00:00]} 2. Nf3 {[%emt 0:00:00]} Nf6 {[%emt 0:00:00]} 3. c4 {[%emt 0:00:02]} dxc4 {[%emt 0:00:00]} 4. e3 {[%emt 0:00:14]} e6 {[%emt 0:00:13]} 5. Bxc4 {[%emt 0:02:54]} a6 {[%emt 0:00:10]} 6. a4 {[%emt 0:01:17]} c5 {[%emt 0:00:18]} 7. O-O {[%emt 0:00:27]} Nc6 {[%emt 0:00:14]} 8. Nc3 {[%emt 0:01:03]} Bd6 {[%emt 0:01:16]} 9. dxc5 {[%emt 0:01:14]} Bxc5 {[%emt 0:00:17]} 10. Qxd8+ {[%emt 0:00:06]} Kxd8 {[%emt 0:00:50]} 11. Ng5 {[%emt 0:01:49]} Ke7 {[%emt 0:01:16]} 12. Nge4 {[%emt 0:00:28]} Bb4 {[%emt 0:03:21]} 13. Rd1 {[%emt 0:05:06]} Bd7 {[%emt 0:03:47]} 14. Nxf6 {[%emt 0:07:07]} gxf6 {[%emt 0:00:06]} 15. Bd2 {[%emt 0:00:18]} f5 {[%emt 0:02:55]} 16. e4 {[%emt 0:07:31]} fxe4 {[%emt 0:01:45]} 17. Nxe4 $11 {[%emt 0:11:36]} Bxd2 {[%emt 0:06:42]} 18. Nxd2 {[%emt 0:01:25]} Rac8 {[%emt 0:06:39]} 19. b3 {[%emt 0:14:48]} Rhg8 {[%emt 0:12:06]} 20. Bd3 {[%emt 0:03:52]} f5 {[%emt 0:14:16]} 21. Nf3 {[%emt 0:16:20]} e5 {[%emt 0:04:44]} 22. Bc4 {[%emt 0:01:17]} Be6 {[%emt 0:02:15]} 23. Rac1 {[%emt 0:01:31]} e4 {[%emt 0:01:34]} 24. Nd4 {[%emt 0:05:50]} Nxd4 {[%emt 0:02:07]} 25. Rxd4 {[%emt 0:03:06]} b5 0-1